[Event "*** SCC Grand Prix: Titled Tuesday Blitz"]
[Site "Chess.com"]
[Date "2020.06.23"]
[Round "4"]
[White "Michaelson_11"]
[Black "AlphaZ3r0"]
[Result "1-0"]
[WhiteElo "2062"]
[BlackElo "2269"]
[TimeControl "180+1"]
[EndTime "10:39:48 PDT"]
[Termination "Michaelson_11 won on time"]

1. e4 {[%clk 0:03:00.9]} 1... c5 {[%clk 0:01:57.9]} 2. Nf3 {[%clk 0:02:57.4]}
2... e6 {[%clk 0:01:57.6]} 3. d4 {[%clk 0:02:57.8]} 3... cxd4 {[%clk 0:01:58.5]}
4. Nxd4 {[%clk 0:02:58.6]} 4... Nc6 {[%clk 0:01:58.7]} 5. Nc3 {[%clk 0:02:58.5]}
5... Qc7 {[%clk 0:01:59.2]} 6. Be3 {[%clk 0:02:52.3]} 6... a6 {[%clk 0:01:59.5]}
7. a3 {[%clk 0:02:52.5]} 7... Nf6 {[%clk 0:01:58.2]} 8. f4 {[%clk 0:02:52.6]}
8... Nxd4 {[%clk 0:01:32.4]} 9. Bxd4 {[%clk 0:02:53.5]} 9... Qxf4 {[%clk
0:01:31.7]} 10. g3 {[%clk 0:02:53.8]} 10... Qc7 {[%clk 0:01:28.5]} 11. e5 {[%clk
0:02:52.2]} 11... Nd5 {[%clk 0:01:04.5]} 12. Nxd5 {[%clk 0:02:50.6]} 12... exd5
{[%clk 0:01:05.4]} 13. Bg2 {[%clk 0:02:50.5]} 13... Bc5 {[%clk 0:00:58.9]} 14.
Bxd5 {[%clk 0:02:41.7]} 14... O-O {[%clk 0:00:58.2]} 15. O-O {[%clk 0:02:40.1]}
15... d6 {[%clk 0:00:42.8]} 16. exd6 {[%clk 0:02:27.7]} 16... Qxd6 {[%clk
0:00:40]} 17. Bxc5 {[%clk 0:02:19.6]} 17... Qxc5+ {[%clk 0:00:38.9]} 18. Kh1
{[%clk 0:02:20.5]} 18... Bh3 {[%clk 0:00:32]} 19. Qf3 {[%clk 0:02:13.5]} 19...
Bxf1 {[%clk 0:00:24.7]} 20. Rxf1 {[%clk 0:02:10.3]} 20... Rad8 {[%clk
0:00:22.4]} 21. c4 {[%clk 0:02:08.1]} 21... Kh8 {[%clk 0:00:21.6]} 22. Bxb7
{[%clk 0:02:01.1]} 22... a5 {[%clk 0:00:19.2]} 23. Bd5 {[%clk 0:02:00.7]} 23...
f6 {[%clk 0:00:17.2]} 24. Qf5 {[%clk 0:01:51.8]} 24... Rb8 {[%clk 0:00:13.1]}
25. Rf2 {[%clk 0:01:45.7]} 25... Rfe8 {[%clk 0:00:12.2]} 26. Kg2 {[%clk
0:01:44.4]} 26... Re1 {[%clk 0:00:10.9]} 27. b4 {[%clk 0:01:05.9]} 27... axb4
{[%clk 0:00:10.4]} 28. axb4 {[%clk 0:01:06.8]} 28... Qd4 {[%clk 0:00:08.1]} 29.
b5 {[%clk 0:01:01.5]} 29... Rbe8 {[%clk 0:00:05.2]} 30. Bc6 {[%clk 0:00:44.6]}
30... R1e5 {[%clk 0:00:01.6]} 31. Qf4 {[%clk 0:00:33.6]} 31... Rd8 {[%clk
0:00:02.5]} 32. Qxd4 {[%clk 0:00:25.3]} 32... Rxd4 {[%clk 0:00:03.4]} 33. Rc2
{[%clk 0:00:25.3]} 33... Rc5 {[%clk 0:00:02.5]} 34. Re2 {[%clk 0:00:18.9]} 34...
g6 {[%clk 0:00:02.3]} 35. Bd5 {[%clk 0:00:19.1]} 35... Rdxd5 {[%clk 0:00:01.1]}
36. cxd5 {[%clk 0:00:18.7]} 36... Rxd5 {[%clk 0:00:02]} 37. Rb2 {[%clk
0:00:17.3]} 37... Rd7 {[%clk 0:00:01.4]} 38. b6 {[%clk 0:00:15]} 38... Rb7
{[%clk 0:00:02.3]} 39. Kf3 {[%clk 0:00:15.5]} 39... Kg7 {[%clk 0:00:03.2]} 40.
Ke4 {[%clk 0:00:16]} 40... Kf7 {[%clk 0:00:03.9]} 41. Kd5 {[%clk 0:00:16.6]}
41... Ke7 {[%clk 0:00:04.4]} 42. Kc6 {[%clk 0:00:17.1]} 42... Rb8 {[%clk
0:00:01.1]} 43. Kc7 {[%clk 0:00:17.5]} 1-0

[Event "*** SCC Grand Prix: Titled Tuesday Blitz"]
[Site "Chess.com"]
[Date "2020.06.23"]
[Round "4"]
[White "GukeshDommaraju"]
[Black "rubhani"]
[Result "0-1"]
[WhiteElo "2699"]
[BlackElo "2523"]
[TimeControl "180+1"]
[EndTime "10:39:50 PDT"]
[Termination "rubhani won on time"]

1. c4 {[%clk 0:03:00.9]} 1... c6 {[%clk 0:02:57]} 2. Nf3 {[%clk 0:02:59.9]} 2...
d5 {[%clk 0:02:57.1]} 3. b3 {[%clk 0:03:00.4]} 3... Nf6 {[%clk 0:02:56.4]} 4.
Bb2 {[%clk 0:03:00.6]} 4... Bg4 {[%clk 0:02:56.6]} 5. e3 {[%clk 0:02:58.1]} 5...
Nbd7 {[%clk 0:02:56.1]} 6. Be2 {[%clk 0:02:57.9]} 6... e6 {[%clk 0:02:56.1]} 7.
O-O {[%clk 0:02:57.5]} 7... Bd6 {[%clk 0:02:56.4]} 8. d4 {[%clk 0:02:56.9]} 8...
O-O {[%clk 0:02:56.5]} 9. Nbd2 {[%clk 0:02:56.8]} 9... a5 {[%clk 0:02:49.7]} 10.
a3 {[%clk 0:02:55.8]} 10... Qe7 {[%clk 0:02:46.3]} 11. Ne5 {[%clk 0:02:51.2]}
11... Bxe2 {[%clk 0:02:45.7]} 12. Qxe2 {[%clk 0:02:52.1]} 12... Bxe5 {[%clk
0:02:15.8]} 13. dxe5 {[%clk 0:02:50.6]} 13... Ne4 {[%clk 0:02:16]} 14. Nxe4
{[%clk 0:02:35.3]} 14... dxe4 {[%clk 0:02:16.9]} 15. a4 {[%clk 0:02:30.9]} 15...
Qg5 {[%clk 0:01:48.8]} 16. Qc2 {[%clk 0:02:30.3]} 16... Qf5 {[%clk 0:01:38.8]}
17. Qc3 {[%clk 0:02:30.2]} 17... Rfc8 {[%clk 0:01:18.5]} 18. Qd4 {[%clk
0:02:14]} 18... Nf8 {[%clk 0:01:01]} 19. Rad1 {[%clk 0:01:29.2]} 19... Ng6
{[%clk 0:01:00.8]} 20. f3 {[%clk 0:01:27.5]} 20... exf3 {[%clk 0:00:42.9]} 21.
Rxf3 {[%clk 0:01:26.7]} 21... Qc2 {[%clk 0:00:41.5]} 22. Rdf1 {[%clk 0:00:45.6]}
22... Rd8 {[%clk 0:00:37]} 23. Qc3 {[%clk 0:00:33.6]} 23... Qxc3 {[%clk
0:00:37.2]} 24. Bxc3 {[%clk 0:00:34.5]} 24... Rd3 {[%clk 0:00:37.7]} 25. Bd4
{[%clk 0:00:21]} 25... Rf8 {[%clk 0:00:25.6]} 26. Rb1 {[%clk 0:00:20.1]} 26...
Nh4 {[%clk 0:00:24.4]} 27. Rf4 {[%clk 0:00:17.2]} 27... Nf5 {[%clk 0:00:24.6]}
28. Kf2 {[%clk 0:00:10.1]} 28... Rd8 {[%clk 0:00:22.2]} 29. Ke2 {[%clk
0:00:08.6]} 29... Nxd4+ {[%clk 0:00:17.4]} 30. Kxd3 {[%clk 0:00:08.1]} 30...
Nxb3+ {[%clk 0:00:15.4]} 31. Kc2 {[%clk 0:00:08.4]} 31... Nc5 {[%clk 0:00:13.2]}
32. Rd4 {[%clk 0:00:08.7]} 32... Rc8 {[%clk 0:00:10.7]} 33. Rd6 {[%clk 0:00:08]}
33... Kf8 {[%clk 0:00:10.9]} 34. g4 {[%clk 0:00:04.4]} 34... Ke7 {[%clk
0:00:11.2]} 35. h4 {[%clk 0:00:04.9]} 35... Rc7 {[%clk 0:00:11.6]} 36. Ra1
{[%clk 0:00:04.3]} 36... Na6 {[%clk 0:00:11.2]} 37. Rd4 {[%clk 0:00:04.1]} 37...
Nc5 {[%clk 0:00:11.4]} 38. Kc3 {[%clk 0:00:04.2]} 38... Nd7 {[%clk 0:00:11.8]}
39. Rb1 {[%clk 0:00:02.9]} 39... Nxe5 {[%clk 0:00:11.9]} 40. Rb2 {[%clk
0:00:02.3]} 40... Nd7 {[%clk 0:00:12.3]} 0-1

[Event "*** SCC Grand Prix: Titled Tuesday Blitz"]
[Site "Chess.com"]
[Date "2020.06.23"]
[Round "4"]
[White "jonaszmb"]
[Black "XDPS"]
[Result "0-1"]
[WhiteElo "2477"]
[BlackElo "2678"]
[TimeControl "180+1"]
[EndTime "10:39:50 PDT"]
[Termination "XDPS won by checkmate"]

1. e4 {[%clk 0:03:00.9]} 1... c5 {[%clk 0:02:59.6]} 2. Nf3 {[%clk 0:03:01.1]}
2... d6 {[%clk 0:03:00]} 3. d4 {[%clk 0:03:00.9]} 3... cxd4 {[%clk 0:03:00.9]}
4. Nxd4 {[%clk 0:03:01.5]} 4... Nf6 {[%clk 0:03:01.5]} 5. Nc3 {[%clk 0:03:01.8]}
5... a6 {[%clk 0:03:02.1]} 6. h3 {[%clk 0:03:02.1]} 6... e6 {[%clk 0:03:00.9]}
7. g4 {[%clk 0:03:01.6]} 7... h6 {[%clk 0:03:01.6]} 8. Bg2 {[%clk 0:03:00.5]}
8... g5 {[%clk 0:03:01.8]} 9. Qe2 {[%clk 0:02:59.1]} 9... Nbd7 {[%clk
0:03:01.2]} 10. h4 {[%clk 0:02:51.2]} 10... Rg8 {[%clk 0:02:55.5]} 11. hxg5
{[%clk 0:02:51]} 11... hxg5 {[%clk 0:02:56.4]} 12. Bd2 {[%clk 0:02:34.6]} 12...
Ne5 {[%clk 0:02:55.2]} 13. f4 {[%clk 0:02:15.9]} 13... gxf4 {[%clk 0:02:51.2]}
14. g5 {[%clk 0:02:14.3]} 14... Rxg5 {[%clk 0:02:46]} 15. Bxf4 {[%clk
0:02:14.5]} 15... Rg4 {[%clk 0:02:40.1]} 16. Bh6 {[%clk 0:01:49.3]} 16... Be7
{[%clk 0:02:00]} 17. O-O-O {[%clk 0:01:46.9]} 17... Bd7 {[%clk 0:01:46.3]} 18.
Bh3 {[%clk 0:01:37.7]} 18... Rg6 {[%clk 0:01:43.5]} 19. Bf4 {[%clk 0:01:37]}
19... Qc7 {[%clk 0:01:40.6]} 20. Rdg1 {[%clk 0:01:13]} 20... Rxg1+ {[%clk
0:01:37.3]} 21. Rxg1 {[%clk 0:01:13.9]} 21... O-O-O {[%clk 0:01:14.5]} 22. Rg7
{[%clk 0:01:10]} 22... Rh8 {[%clk 0:00:54]} 23. Bg2 {[%clk 0:01:07.3]} 23... Ng6
{[%clk 0:00:48]} 24. Bg5 {[%clk 0:00:57.8]} 24... Ne5 {[%clk 0:00:34.3]} 25. Nf3
{[%clk 0:00:42.7]} 25... Be8 {[%clk 0:00:28.7]} 26. Nxe5 {[%clk 0:00:41.3]}
26... dxe5 {[%clk 0:00:28.8]} 27. Qf2 {[%clk 0:00:31.9]} 27... Nh5 {[%clk
0:00:27.2]} 28. Bxe7 {[%clk 0:00:24.6]} 28... Qxe7 {[%clk 0:00:27.8]} 29. Rg4
{[%clk 0:00:18.3]} 29... Nf4 {[%clk 0:00:26.5]} 30. Qa7 {[%clk 0:00:16.4]} 30...
Qd6 {[%clk 0:00:18.9]} 31. b3 {[%clk 0:00:11]} 31... Qb8 {[%clk 0:00:15.2]} 32.
Qc5+ {[%clk 0:00:10.3]} 32... Qc7 {[%clk 0:00:15.8]} 33. Qb4 {[%clk 0:00:04.7]}
33... Kb8 {[%clk 0:00:15.4]} 34. Na4 {[%clk 0:00:04.1]} 34... Bxa4 {[%clk
0:00:14.6]} 35. Qxa4 {[%clk 0:00:03.8]} 35... Rc8 {[%clk 0:00:13.8]} 36. b4
{[%clk 0:00:03]} 36... Qc3 {[%clk 0:00:10.9]} 37. Qb3 {[%clk 0:00:03]} 37...
Qe1+ {[%clk 0:00:10.8]} 38. Kb2 {[%clk 0:00:03.2]} 38... Ne2 {[%clk 0:00:10.7]}
39. Qe3 {[%clk 0:00:02.2]} 39... Qxb4+ {[%clk 0:00:10.2]} 40. Ka1 {[%clk
0:00:02.6]} 40... Nd4 {[%clk 0:00:07.3]} 41. c4 {[%clk 0:00:01.2]} 41... Nc2#
{[%clk 0:00:07.5]} 0-1

[Event "*** SCC Grand Prix: Titled Tuesday Blitz"]
[Site "Chess.com"]
[Date "2020.06.23"]
[Round "4"]
[White "Rud_Makarian"]
[Black "Fandorine"]
[Result "1-0"]
[WhiteElo "2702"]
[BlackElo "2884"]
[TimeControl "180+1"]
[EndTime "10:39:53 PDT"]
[Termination "Rud_Makarian won by resignation"]

1. d4 {[%clk 0:03:00.9]} 1... Nf6 {[%clk 0:03:00.1]} 2. c4 {[%clk 0:03:01.2]}
2... g6 {[%clk 0:03:00.4]} 3. Nc3 {[%clk 0:03:01]} 3... Bg7 {[%clk 0:03:00.7]}
4. e4 {[%clk 0:03:00.6]} 4... d6 {[%clk 0:03:01.3]} 5. Be2 {[%clk 0:03:00.4]}
5... O-O {[%clk 0:03:01.6]} 6. Be3 {[%clk 0:03:00.7]} 6... Na6 {[%clk
0:03:01.5]} 7. Nf3 {[%clk 0:02:59.7]} 7... c6 {[%clk 0:02:55.9]} 8. h3 {[%clk
0:02:50]} 8... e5 {[%clk 0:02:55]} 9. d5 {[%clk 0:02:24]} 9... Nh5 {[%clk
0:02:54.4]} 10. Nd2 {[%clk 0:01:40.5]} 10... Nf4 {[%clk 0:02:52.6]} 11. Bf1
{[%clk 0:01:39.7]} 11... f5 {[%clk 0:02:49.1]} 12. g3 {[%clk 0:01:38.5]} 12...
Ne6 {[%clk 0:02:49.3]} 13. exf5 {[%clk 0:01:20.4]} 13... gxf5 {[%clk 0:02:46.3]}
14. dxe6 {[%clk 0:01:10.2]} 14... f4 {[%clk 0:02:46.2]} 15. Nde4 {[%clk
0:01:10]} 15... fxe3 {[%clk 0:02:44]} 16. fxe3 {[%clk 0:01:10.3]} 16... Bxe6
{[%clk 0:02:37.4]} 17. Qxd6 {[%clk 0:01:04.4]} 17... Qxd6 {[%clk 0:02:34.8]} 18.
Nxd6 {[%clk 0:01:04.6]} 18... Bh6 {[%clk 0:02:35.3]} 19. O-O-O {[%clk 0:00:41]}
19... Bxe3+ {[%clk 0:02:26.4]} 20. Kb1 {[%clk 0:00:41.3]} 20... Rad8 {[%clk
0:02:01.5]} 21. Be2 {[%clk 0:00:40.8]} 21... Bd4 {[%clk 0:01:50.2]} 22. Nce4
{[%clk 0:00:33.9]} 22... Nc5 {[%clk 0:01:13.9]} 23. Bg4 {[%clk 0:00:31]} 23...
Bxg4 {[%clk 0:00:50.1]} 24. hxg4 {[%clk 0:00:31.9]} 24... Rxd6 {[%clk
0:00:46.1]} 25. Nxd6 {[%clk 0:00:30.3]} 25... Rf2 {[%clk 0:00:46.7]} 26. Rxd4
{[%clk 0:00:12.5]} 26... exd4 {[%clk 0:00:46.7]} 27. Rd1 {[%clk 0:00:12.4]}
27... Na4 {[%clk 0:00:25.8]} 28. Rxd4 {[%clk 0:00:11]} 28... b6 {[%clk
0:00:19.8]} 29. Nf5 {[%clk 0:00:09.6]} 29... Rxb2+ {[%clk 0:00:09.9]} 30. Kc1
{[%clk 0:00:09.7]} 30... Rxa2 {[%clk 0:00:06.6]} 31. Rd7 {[%clk 0:00:09.7]}
31... Nc5 {[%clk 0:00:03.9]} 32. Rg7+ {[%clk 0:00:08.1]} 32... Kf8 {[%clk
0:00:03.6]} 33. Rxh7 {[%clk 0:00:07.9]} 33... a5 {[%clk 0:00:02.1]} 34. g5
{[%clk 0:00:07]} 34... Rf2 {[%clk 0:00:02.6]} 35. Nd6 {[%clk 0:00:04]} 35... a4
{[%clk 0:00:01.5]} 36. g6 {[%clk 0:00:04]} 36... Kg8 {[%clk 0:00:01.8]} 37. Ra7
{[%clk 0:00:03.6]} 37... Nb3+ {[%clk 0:00:01.4]} 38. Kd1 {[%clk 0:00:03.2]}
38... Nc5 {[%clk 0:00:01.6]} 39. Ke1 {[%clk 0:00:02.5]} 39... Rf7 {[%clk
0:00:01.8]} 40. gxf7+ {[%clk 0:00:01.9]} 1-0

[Event "*** SCC Grand Prix: Titled Tuesday Blitz"]
[Site "Chess.com"]
[Date "2020.06.23"]
[Round "4"]
[White "Ladislav1969"]
[Black "PawnEatingZombie"]
[Result "0-1"]
[WhiteElo "2301"]
[BlackElo "2107"]
[TimeControl "180+1"]
[EndTime "10:39:54 PDT"]
[Termination "PawnEatingZombie won on time"]

1. e4 {[%clk 0:03:00.9]} 1... c6 {[%clk 0:02:59.4]} 2. d4 {[%clk 0:03:00.8]}
2... d5 {[%clk 0:02:59.3]} 3. e5 {[%clk 0:03:01.7]} 3... Bf5 {[%clk 0:02:58.8]}
4. Nd2 {[%clk 0:03:02]} 4... e6 {[%clk 0:02:57.4]} 5. Nb3 {[%clk 0:03:01.7]}
5... Nd7 {[%clk 0:02:55.5]} 6. Nf3 {[%clk 0:03:01.1]} 6... Bg6 {[%clk
0:02:55.1]} 7. Be3 {[%clk 0:02:52.9]} 7... Nh6 {[%clk 0:02:54.3]} 8. h4 {[%clk
0:02:36.9]} 8... Nf5 {[%clk 0:02:41.8]} 9. Bg5 {[%clk 0:02:33.9]} 9... Be7
{[%clk 0:02:40.5]} 10. Bxe7 {[%clk 0:02:31.9]} 10... Nxe7 {[%clk 0:02:38.3]} 11.
h5 {[%clk 0:02:27.3]} 11... Bf5 {[%clk 0:02:19.6]} 12. Nh4 {[%clk 0:02:20.6]}
12... h6 {[%clk 0:02:13]} 13. Nxf5 {[%clk 0:02:13.9]} 13... Nxf5 {[%clk
0:02:13.9]} 14. Bd3 {[%clk 0:02:13.6]} 14... Qg5 {[%clk 0:01:39.9]} 15. g3
{[%clk 0:01:45.3]} 15... f6 {[%clk 0:01:16.1]} 16. exf6 {[%clk 0:01:36.7]} 16...
Qxf6 {[%clk 0:01:11.2]} 17. Qe2 {[%clk 0:01:28.4]} 17... O-O-O {[%clk
0:01:09.5]} 18. O-O-O {[%clk 0:01:24.8]} 18... Rde8 {[%clk 0:01:09.6]} 19. c3
{[%clk 0:01:18.6]} 19... Rhf8 {[%clk 0:01:09.3]} 20. Qg4 {[%clk 0:01:08.1]}
20... Kb8 {[%clk 0:01:03.5]} 21. f4 {[%clk 0:01:08.1]} 21... Ne3 {[%clk
0:00:55.2]} 22. Qe2 {[%clk 0:01:01.8]} 22... Nxd1 {[%clk 0:00:54.8]} 23. Rxd1
{[%clk 0:01:00.9]} 23... Ka8 {[%clk 0:00:48.2]} 24. Nd2 {[%clk 0:00:59.4]} 24...
c5 {[%clk 0:00:40.4]} 25. Nf3 {[%clk 0:00:58.1]} 25... cxd4 {[%clk 0:00:40.1]}
26. cxd4 {[%clk 0:00:57.4]} 26... Rc8+ {[%clk 0:00:37.4]} 27. Kb1 {[%clk
0:00:57.6]} 27... Qe7 {[%clk 0:00:27.4]} 28. Re1 {[%clk 0:00:56]} 28... Rf6
{[%clk 0:00:23.3]} 29. Nh2 {[%clk 0:00:35.6]} 29... Qb4 {[%clk 0:00:18.8]} 30.
Ng4 {[%clk 0:00:32.8]} 30... Qxd4 {[%clk 0:00:17.4]} 31. Nxf6 {[%clk 0:00:30.5]}
31... Nxf6 {[%clk 0:00:17.4]} 32. Bg6 {[%clk 0:00:28.9]} 32... Qc5 {[%clk
0:00:14.1]} 33. Qxe6 {[%clk 0:00:26.5]} 33... Ne4 {[%clk 0:00:14]} 34. Bxe4
{[%clk 0:00:24.7]} 34... dxe4 {[%clk 0:00:14.1]} 35. Qxe4 {[%clk 0:00:24.7]}
35... Qf2 {[%clk 0:00:09.7]} 36. Rc1 {[%clk 0:00:16]} 36... Rxc1+ {[%clk
0:00:06.2]} 37. Kxc1 {[%clk 0:00:16.2]} 37... a6 {[%clk 0:00:06.8]} 38. Qd3
{[%clk 0:00:09.9]} 38... Qe1+ {[%clk 0:00:04.2]} 39. Kc2 {[%clk 0:00:10.2]}
39... Qe8 {[%clk 0:00:02.5]} 40. g4 {[%clk 0:00:06.5]} 40... Qc8+ {[%clk
0:00:02.4]} 41. Kd2 {[%clk 0:00:03.2]} 41... Qxg4 {[%clk 0:00:03.3]} 42. Qd8+
{[%clk 0:00:02.9]} 42... Ka7 {[%clk 0:00:02.9]} 43. Qd4+ {[%clk 0:00:03]} 43...
Ka8 {[%clk 0:00:03.2]} 0-1

[Event "*** SCC Grand Prix: Titled Tuesday Blitz"]
[Site "Chess.com"]
[Date "2020.06.23"]
[Round "4"]
[White "topotun"]
[Black "VincentKeymer"]
[Result "1/2-1/2"]
[WhiteElo "2689"]
[BlackElo "2846"]
[TimeControl "180+1"]
[EndTime "10:39:55 PDT"]
[Termination "Game drawn by repetition"]

1. e4 {[%clk 0:02:56.1]} 1... e6 {[%clk 0:03:00.1]} 2. d4 {[%clk 0:02:55.8]}
2... d5 {[%clk 0:02:59]} 3. Nd2 {[%clk 0:02:56.2]} 3... b6 {[%clk 0:02:58.7]} 4.
e5 {[%clk 0:02:50.5]} 4... c5 {[%clk 0:02:58]} 5. c3 {[%clk 0:02:50.5]} 5... Ne7
{[%clk 0:02:58.2]} 6. Ndf3 {[%clk 0:02:44.9]} 6... Nec6 {[%clk 0:02:56.9]} 7.
Be3 {[%clk 0:02:37]} 7... Be7 {[%clk 0:02:52.2]} 8. h4 {[%clk 0:02:36.6]} 8...
Ba6 {[%clk 0:02:35.3]} 9. Bxa6 {[%clk 0:02:35.7]} 9... Nxa6 {[%clk 0:02:36.2]}
10. Ne2 {[%clk 0:02:31.7]} 10... Nc7 {[%clk 0:02:28.2]} 11. h5 {[%clk
0:02:25.8]} 11... Qd7 {[%clk 0:02:11.6]} 12. h6 {[%clk 0:02:19.2]} 12... g6
{[%clk 0:02:09.9]} 13. g3 {[%clk 0:02:19.4]} 13... c4 {[%clk 0:02:07.1]} 14. Kf1
{[%clk 0:02:19.3]} 14... b5 {[%clk 0:02:07.1]} 15. Bg5 {[%clk 0:02:19]} 15...
O-O-O {[%clk 0:02:02.1]} 16. Kg2 {[%clk 0:02:14.9]} 16... a5 {[%clk 0:02:00.6]}
17. Qd2 {[%clk 0:02:14.5]} 17... Kb7 {[%clk 0:01:57.5]} 18. Nh2 {[%clk
0:02:13.8]} 18... Rb8 {[%clk 0:01:38]} 19. Ng4 {[%clk 0:02:13.2]} 19... b4
{[%clk 0:01:37.3]} 20. Bxe7 {[%clk 0:02:03.4]} 20... Qxe7 {[%clk 0:01:37.2]} 21.
Nf6 {[%clk 0:02:02.4]} 21... Ne8 {[%clk 0:01:36.6]} 22. Ng4 {[%clk 0:01:54.7]}
22... g5 {[%clk 0:01:18]} 23. Ng1 {[%clk 0:01:46.4]} 23... Rg8 {[%clk
0:01:10.3]} 24. Nf3 {[%clk 0:01:40.4]} 24... f5 {[%clk 0:01:09.6]} 25. exf6
{[%clk 0:01:40.5]} 25... Nxf6 {[%clk 0:01:09.6]} 26. Nxf6 {[%clk 0:01:39.3]}
26... Qxf6 {[%clk 0:01:10.5]} 27. Qe3 {[%clk 0:01:37.7]} 27... g4 {[%clk
0:01:06.4]} 28. Nh2 {[%clk 0:01:20.2]} 28... Rbf8 {[%clk 0:00:57.1]} 29. Rhf1
{[%clk 0:01:06.6]} 29... Qg6 {[%clk 0:00:44.7]} 30. Rae1 {[%clk 0:00:44.2]}
30... Rf6 {[%clk 0:00:33]} 31. f3 {[%clk 0:00:44.4]} 31... gxf3+ {[%clk
0:00:21.5]} 32. Rxf3 {[%clk 0:00:45.3]} 32... Rxf3 {[%clk 0:00:20.1]} 33. Qxf3
{[%clk 0:00:46.2]} 33... Ne7 {[%clk 0:00:20.6]} 34. Qf4 {[%clk 0:00:30.6]} 34...
Nf5 {[%clk 0:00:20.3]} 35. Nf1 {[%clk 0:00:31.1]} 35... Nxh6 {[%clk 0:00:19.7]}
36. Qd6 {[%clk 0:00:28.7]} 36... Qc2+ {[%clk 0:00:13.6]} 37. Kh1 {[%clk
0:00:20.6]} 37... Ng4 {[%clk 0:00:10.3]} 38. Qd7+ {[%clk 0:00:19.7]} 38... Kb8
{[%clk 0:00:09.9]} 39. Qd6+ {[%clk 0:00:15.2]} 39... Kb7 {[%clk 0:00:08.2]} 40.
Qd7+ {[%clk 0:00:12.9]} 40... Ka8 {[%clk 0:00:07.7]} 41. Qc6+ {[%clk 0:00:08.7]}
41... Ka7 {[%clk 0:00:08]} 42. Qc7+ {[%clk 0:00:09]} 42... Ka6 {[%clk
0:00:08.2]} 43. Qc6+ {[%clk 0:00:09.4]} 43... Ka7 {[%clk 0:00:08.6]} 44. Qc7+
{[%clk 0:00:08.7]} 44... Ka8 {[%clk 0:00:08.7]} 45. Qc6+ {[%clk 0:00:08.7]}
45... Ka7 {[%clk 0:00:08.9]} 1/2-1/2

[Event "*** SCC Grand Prix: Titled Tuesday Blitz"]
[Site "Chess.com"]
[Date "2020.06.23"]
[Round "4"]
[White "Orest_Vovk"]
[Black "politeplayer"]
[Result "1-0"]
[WhiteElo "2397"]
[BlackElo "2174"]
[TimeControl "180+1"]
[EndTime "10:39:55 PDT"]
[Termination "Orest_Vovk won by resignation"]

1. h4 {[%clk 0:02:45.9]} 1... e5 {[%clk 0:02:57.2]} 2. h5 {[%clk 0:02:32.5]}
2... d5 {[%clk 0:02:54.2]} 3. h6 {[%clk 0:02:32.5]} 3... Nxh6 {[%clk 0:02:52.8]}
4. d4 {[%clk 0:02:32.4]} 4... exd4 {[%clk 0:02:45.5]} 5. Bxh6 {[%clk 0:02:31.7]}
5... gxh6 {[%clk 0:02:45.6]} 6. Qxd4 {[%clk 0:02:32.1]} 6... Rg8 {[%clk
0:02:43.3]} 7. Nc3 {[%clk 0:02:31.6]} 7... Bg7 {[%clk 0:02:38.2]} 8. Qd3 {[%clk
0:02:31.4]} 8... Nc6 {[%clk 0:02:30.9]} 9. O-O-O {[%clk 0:02:28.7]} 9... Be6
{[%clk 0:02:23.8]} 10. Qxh7 {[%clk 0:01:59.5]} 10... Qg5+ {[%clk 0:02:02.5]} 11.
e3 {[%clk 0:01:54.7]} 11... O-O-O {[%clk 0:01:48.9]} 12. Nf3 {[%clk 0:01:50.8]}
12... Qf6 {[%clk 0:01:37.3]} 13. Qd3 {[%clk 0:01:47.1]} 13... a6 {[%clk
0:01:26.1]} 14. Rh5 {[%clk 0:01:18.7]} 14... Nb4 {[%clk 0:01:22.7]} 15. Qd4
{[%clk 0:01:15.1]} 15... Qe7 {[%clk 0:01:13.7]} 16. Qa7 {[%clk 0:00:57.2]} 16...
Bxc3 {[%clk 0:01:11.6]} 17. bxc3 {[%clk 0:00:56.8]} 17... Nc6 {[%clk 0:01:08.5]}
18. Qa8+ {[%clk 0:00:51.3]} 18... Kd7 {[%clk 0:01:08.4]} 19. Qxb7 {[%clk
0:00:51]} 19... Rb8 {[%clk 0:01:00.6]} 20. Rdxd5+ {[%clk 0:00:41.6]} 20... Bxd5
{[%clk 0:00:39.8]} 21. Rxd5+ {[%clk 0:00:41.2]} 21... Ke8 {[%clk 0:00:29.5]} 22.
Qxc6+ {[%clk 0:00:39.5]} 22... Kf8 {[%clk 0:00:25.8]} 23. Qxh6+ {[%clk
0:00:36.1]} 23... Rg7 {[%clk 0:00:21.5]} 24. Rg5 {[%clk 0:00:30]} 24... Qa3+
{[%clk 0:00:19.7]} 25. Kd2 {[%clk 0:00:29.2]} 25... Qd6+ {[%clk 0:00:18]} 26.
Qxd6+ {[%clk 0:00:28.5]} 26... cxd6 {[%clk 0:00:18.2]} 27. Rxg7 {[%clk
0:00:28.4]} 27... Kxg7 {[%clk 0:00:18.6]} 28. Bxa6 {[%clk 0:00:28.4]} 28... Ra8
{[%clk 0:00:17.5]} 29. Bc4 {[%clk 0:00:28.1]} 29... Kf6 {[%clk 0:00:17.9]} 30.
Bd5 {[%clk 0:00:28]} 30... Rb8 {[%clk 0:00:17.3]} 31. e4 {[%clk 0:00:28.2]}
31... Rb1 {[%clk 0:00:17.6]} 32. Nd4 {[%clk 0:00:25.9]} 32... Rf1 {[%clk
0:00:17.6]} 33. Ke2 {[%clk 0:00:24.6]} 33... Rg1 {[%clk 0:00:17]} 34. g3 {[%clk
0:00:24.9]} 34... Rc1 {[%clk 0:00:17.1]} 35. Bb3 {[%clk 0:00:23.4]} 35... Ra1
{[%clk 0:00:16.4]} 36. f4 {[%clk 0:00:22.5]} 36... Ke7 {[%clk 0:00:16.5]} 37.
Bd5 {[%clk 0:00:22.3]} 37... f6 {[%clk 0:00:16.4]} 38. Nf5+ {[%clk 0:00:22.3]}
38... Kd7 {[%clk 0:00:16.5]} 39. Ne3 {[%clk 0:00:21.4]} 39... Rg1 {[%clk
0:00:16.5]} 40. Kf2 {[%clk 0:00:20.7]} 40... Rh1 {[%clk 0:00:16.2]} 41. g4
{[%clk 0:00:20.8]} 41... Rh2+ {[%clk 0:00:16.2]} 42. Kg3 {[%clk 0:00:20.6]}
42... Rh1 {[%clk 0:00:15.5]} 43. g5 {[%clk 0:00:19.9]} 43... Rg1+ {[%clk
0:00:14.9]} 44. Ng2 {[%clk 0:00:19.2]} 44... fxg5 {[%clk 0:00:14.9]} 45. fxg5
{[%clk 0:00:18.5]} 45... Ke7 {[%clk 0:00:15.5]} 46. Kf2 {[%clk 0:00:17.9]} 46...
Rc1 {[%clk 0:00:15.1]} 47. Bb3 {[%clk 0:00:17]} 47... d5 {[%clk 0:00:14.5]} 48.
exd5 {[%clk 0:00:16.3]} 48... Kd6 {[%clk 0:00:15]} 49. g6 {[%clk 0:00:15.6]}
49... Ke7 {[%clk 0:00:15.2]} 50. d6+ {[%clk 0:00:15.3]} 50... Kxd6 {[%clk
0:00:15.3]} 51. g7 {[%clk 0:00:15.5]} 1-0